[Event "Early-Titled-Tuesday-Blitz-September-26-2023"]
[Site "Chess.com"]
[Date "2023.09.26"]
[Round "4"]
[White "atigerman"]
[Black "artin10862"]
[Result "0-1"]
[WhiteElo "2716"]
[BlackElo "2901"]
[TimeControl "180+1"]
[EndTime "8:42:13 PDT"]
[Termination "artin10862 won by checkmate"]

1. e4 {[%clk 0:02:57.6]} 1... c5 {[%clk 0:02:57.7]} 2. Nc3 {[%clk 0:02:43.3]}
2... e6 {[%clk 0:02:52.8]} 3. g3 {[%clk 0:02:40.8]} 3... a6 {[%clk 0:02:47]} 4.
Bg2 {[%clk 0:02:39.7]} 4... b5 {[%clk 0:02:45.2]} 5. Nge2 {[%clk 0:02:40.1]}
5... Bb7 {[%clk 0:02:41.9]} 6. O-O {[%clk 0:02:40.3]} 6... Nf6 {[%clk
0:02:39.4]} 7. Re1 {[%clk 0:02:38.1]} 7... b4 {[%clk 0:02:35.2]} 8. Na4 {[%clk
0:02:37]} 8... Bxe4 {[%clk 0:02:14.2]} 9. d4 {[%clk 0:02:36.3]} 9... Bxg2 {[%clk
0:01:52]} 10. Kxg2 {[%clk 0:02:36.2]} 10... cxd4 {[%clk 0:01:51.7]} 11. Qxd4
{[%clk 0:02:36]} 11... Nc6 {[%clk 0:01:47.1]} 12. Qh4 {[%clk 0:02:27.1]} 12...
Be7 {[%clk 0:01:42.6]} 13. Bg5 {[%clk 0:02:16.5]} 13... h6 {[%clk 0:01:15.7]}
14. Rad1 {[%clk 0:02:16.2]} 14... Qa5 {[%clk 0:01:12]} 15. Bxf6 {[%clk
0:00:22.2]} 15... Bxf6 {[%clk 0:01:12.9]} 16. Qe4 {[%clk 0:00:18.9]} 16... Qxa4
{[%clk 0:01:09.3]} 17. Nf4 {[%clk 0:00:17.2]} 17... O-O {[%clk 0:00:44.7]} 18.
Rxd7 {[%clk 0:00:16.5]} 18... Ne5 {[%clk 0:00:44]} 19. Rb7 {[%clk 0:00:09.6]}
19... a5 {[%clk 0:00:35.7]} 20. Nh5 {[%clk 0:00:09.6]} 20... Qc6 {[%clk
0:00:34.6]} 21. f4 {[%clk 0:00:07.6]} 21... Qxe4+ {[%clk 0:00:32.3]} 22. Rxe4
{[%clk 0:00:08.5]} 22... Ng6 {[%clk 0:00:29]} 23. Nxf6+ {[%clk 0:00:07.1]} 23...
gxf6 {[%clk 0:00:28.9]} 24. h4 {[%clk 0:00:07]} 24... Rac8 {[%clk 0:00:25.5]}
25. Rd4 {[%clk 0:00:07.3]} 25... Rxc2+ {[%clk 0:00:24.7]} 26. Kh3 {[%clk
0:00:07]} 26... Rc5 {[%clk 0:00:21.2]} 27. Rdd7 {[%clk 0:00:06.9]} 27... h5
{[%clk 0:00:18.8]} 28. b3 {[%clk 0:00:06.6]} 28... f5 {[%clk 0:00:18.9]} 29. Ra7
{[%clk 0:00:06.6]} 29... Kg7 {[%clk 0:00:19.1]} 30. Rdb7 {[%clk 0:00:06.4]}
30... Nh8 {[%clk 0:00:19]} 31. Re7 {[%clk 0:00:06.5]} 31... Rd8 {[%clk
0:00:18.2]} 32. Rxe6 {[%clk 0:00:06.6]} 32... Rc3 {[%clk 0:00:16.8]} 33. Re5
{[%clk 0:00:06.2]} 33... Rdd3 {[%clk 0:00:16.9]} 34. Rxf5 {[%clk 0:00:04.5]}
34... Rxg3+ {[%clk 0:00:17.5]} 35. Kh2 {[%clk 0:00:05.4]} 35... Rg4 {[%clk
0:00:14.4]} 36. Rxh5 {[%clk 0:00:04.1]} 36... Ng6 {[%clk 0:00:10.2]} 37. f5
{[%clk 0:00:04.4]} 37... Rxh4+ {[%clk 0:00:05.2]} 38. Rxh4 {[%clk 0:00:04.9]}
38... Nxh4 {[%clk 0:00:06.1]} 39. Rxa5 {[%clk 0:00:05.4]} 39... Rf3 {[%clk
0:00:06.5]} 40. Rb5 {[%clk 0:00:05.5]} 40... Nxf5 {[%clk 0:00:04.3]} 41. Rxb4
{[%clk 0:00:05.3]} 41... Rf2+ {[%clk 0:00:04.5]} 42. Kh3 {[%clk 0:00:05.5]}
42... Rxa2 {[%clk 0:00:05.4]} 43. Rf4 {[%clk 0:00:06.4]} 43... Ne7 {[%clk
0:00:05.6]} 44. b4 {[%clk 0:00:06.6]} 44... Rb2 {[%clk 0:00:05.9]} 45. Rg4+
{[%clk 0:00:06.6]} 45... Kf6 {[%clk 0:00:05.7]} 46. Rf4+ {[%clk 0:00:07.2]}
46... Ke6 {[%clk 0:00:06.2]} 47. Re4+ {[%clk 0:00:07.5]} 47... Kd6 {[%clk
0:00:06.7]} 48. Rd4+ {[%clk 0:00:07.7]} 48... Nd5 {[%clk 0:00:07.1]} 49. Rd1
{[%clk 0:00:04.3]} 49... Rxb4 {[%clk 0:00:06.9]} 50. Rf1 {[%clk 0:00:05]} 50...
Ke7 {[%clk 0:00:04.3]} 51. Re1+ {[%clk 0:00:05.2]} 51... Kf8 {[%clk 0:00:04.7]}
52. Ra1 {[%clk 0:00:05.8]} 52... Ne7 {[%clk 0:00:04.7]} 53. Ra5 {[%clk
0:00:06.3]} 53... Kg7 {[%clk 0:00:05]} 54. Kg3 {[%clk 0:00:07]} 54... Ng6 {[%clk
0:00:05.6]} 55. Kf3 {[%clk 0:00:07.5]} 55... Rf4+ {[%clk 0:00:05]} 56. Ke3
{[%clk 0:00:08]} 56... Rf6 {[%clk 0:00:04.6]} 57. Rh5 {[%clk 0:00:08.6]} 57...
Ne7 {[%clk 0:00:04.3]} 58. Kd2 {[%clk 0:00:08.6]} 58... Kg6 {[%clk 0:00:04.7]}
59. Rh8 {[%clk 0:00:08.1]} 59... Rd6+ {[%clk 0:00:04.6]} 60. Ke3 {[%clk
0:00:07.9]} 60... f5 {[%clk 0:00:04.9]} 61. Kf4 {[%clk 0:00:07.8]} 61... Rd4+
{[%clk 0:00:04.9]} 62. Kf3 {[%clk 0:00:08.1]} 62... Re4 {[%clk 0:00:04.9]} 63.
Re8 {[%clk 0:00:08.5]} 63... Kf7 {[%clk 0:00:05.2]} 64. Rh8 {[%clk 0:00:08.5]}
64... Nd5 {[%clk 0:00:05.2]} 65. Rh7+ {[%clk 0:00:08.3]} 65... Kf6 {[%clk
0:00:05.3]} 66. Rh6+ {[%clk 0:00:08.3]} 66... Ke5 {[%clk 0:00:05.6]} 67. Ra6
{[%clk 0:00:07.9]} 67... Re3+ {[%clk 0:00:05.4]} 68. Kf2 {[%clk 0:00:08]} 68...
f4 {[%clk 0:00:05.9]} 69. Ra4 {[%clk 0:00:06.9]} 69... Nc3 {[%clk 0:00:04.5]}
70. Ra5+ {[%clk 0:00:06.6]} 70... Kf6 {[%clk 0:00:04.9]} 71. Ra6+ {[%clk
0:00:05.8]} 71... Kf5 {[%clk 0:00:04.5]} 72. Ra8 {[%clk 0:00:04.4]} 72... Ne4+
{[%clk 0:00:04.4]} 73. Kg2 {[%clk 0:00:05.3]} 73... f3+ {[%clk 0:00:03]} 74. Kh2
{[%clk 0:00:06]} 74... f2 {[%clk 0:00:03.1]} 75. Rf8+ {[%clk 0:00:05.8]} 75...
Ke5 {[%clk 0:00:03.6]} 76. Kg2 {[%clk 0:00:04.8]} 76... Re1 {[%clk 0:00:03.9]}
77. Re8+ {[%clk 0:00:02.5]} 77... Kd5 {[%clk 0:00:03.9]} 78. Rd8+ {[%clk
0:00:02.3]} 78... Kc6 {[%clk 0:00:04.2]} 79. Rc8+ {[%clk 0:00:02.9]} 79... Kd7
{[%clk 0:00:04]} 80. Rf8 {[%clk 0:00:03.8]} 80... Rg1+ {[%clk 0:00:04.1]} 81.
Kh2 {[%clk 0:00:04.3]} 81... Re1 {[%clk 0:00:02.3]} 82. Rd8+ {[%clk 0:00:04.8]}
82... Kxd8 {[%clk 0:00:02.4]} 83. Kg2 {[%clk 0:00:04.6]} 83... f1=Q+ {[%clk
0:00:03]} 84. Kh2 {[%clk 0:00:04.7]} 84... Qf2+ {[%clk 0:00:03.3]} 85. Kh3
{[%clk 0:00:04.6]} 85... Qg3# {[%clk 0:00:04.2]} 0-1

[Event "Early-Titled-Tuesday-Blitz-September-26-2023"]
[Site "Chess.com"]
[Date "2023.09.26"]
[Round "4"]
[White "Giorno"]
[Black "SaqoChess_Twitch"]
[Result "1-0"]
[WhiteElo "2501"]
[BlackElo "2666"]
[TimeControl "180+1"]
[EndTime "8:44:54 PDT"]
[Termination "Giorno won by checkmate"]

1. d4 {[%clk 0:03:00.9]} 1... d5 {[%clk 0:02:58.9]} 2. Bf4 {[%clk 0:02:59.7]}
2... Nf6 {[%clk 0:02:58.5]} 3. e3 {[%clk 0:02:59.6]} 3... a6 {[%clk 0:02:58.5]}
4. Nd2 {[%clk 0:02:59.4]} 4... c5 {[%clk 0:02:59.1]} 5. c3 {[%clk 0:02:59.5]}
5... Nc6 {[%clk 0:02:59.7]} 6. Ngf3 {[%clk 0:02:59.5]} 6... e6 {[%clk
0:03:00.2]} 7. Bd3 {[%clk 0:02:57.7]} 7... Nh5 {[%clk 0:02:59.8]} 8. Be5 {[%clk
0:02:55.9]} 8... Nf6 {[%clk 0:02:56.9]} 9. O-O {[%clk 0:02:55.3]} 9... Nxe5
{[%clk 0:02:57.2]} 10. Nxe5 {[%clk 0:02:54.9]} 10... Bd6 {[%clk 0:02:56.4]} 11.
f4 {[%clk 0:02:54.8]} 11... O-O {[%clk 0:02:53.1]} 12. Rf3 {[%clk 0:02:54.8]}
12... Nd7 {[%clk 0:02:51.7]} 13. Bxh7+ {[%clk 0:02:45.9]} 13... Kh8 {[%clk
0:02:28.1]} 14. Rh3 {[%clk 0:02:45.3]} 14... Nf6 {[%clk 0:02:18.8]} 15. Bd3+
{[%clk 0:02:29.6]} 15... Kg8 {[%clk 0:02:18.1]} 16. Qe1 {[%clk 0:02:27.1]} 16...
Ne4 {[%clk 0:02:03.1]} 17. Nxe4 {[%clk 0:02:22.3]} 17... dxe4 {[%clk 0:02:02.8]}
18. Bxe4 {[%clk 0:02:22.6]} 18... f5 {[%clk 0:02:03]} 19. Bc2 {[%clk 0:02:14.3]}
19... Bxe5 {[%clk 0:02:00.1]} 20. fxe5 {[%clk 0:02:12.6]} 20... Qg5 {[%clk
0:01:35.8]} 21. Rg3 {[%clk 0:02:02.2]} 21... Qh6 {[%clk 0:01:35.1]} 22. Rd1
{[%clk 0:01:54.5]} 22... c4 {[%clk 0:01:32.2]} 23. Rh3 {[%clk 0:01:50.7]} 23...
Qg5 {[%clk 0:01:32]} 24. Qg3 {[%clk 0:01:49.6]} 24... Qxg3 {[%clk 0:01:32]} 25.
Rxg3 {[%clk 0:01:50.5]} 25... Kf7 {[%clk 0:01:30.5]} 26. e4 {[%clk 0:01:48]}
26... g6 {[%clk 0:01:23.3]} 27. d5 {[%clk 0:01:45.4]} 27... Bd7 {[%clk
0:01:19.2]} 28. Rd4 {[%clk 0:01:32.5]} 28... b5 {[%clk 0:01:17.5]} 29. exf5
{[%clk 0:01:26.4]} 29... gxf5 {[%clk 0:01:17.5]} 30. dxe6+ {[%clk 0:01:19.8]}
30... Bxe6 {[%clk 0:01:17.6]} 31. Rf3 {[%clk 0:01:20.2]} 31... Ke7 {[%clk
0:01:10.7]} 32. Kf2 {[%clk 0:01:07.7]} 32... a5 {[%clk 0:00:54.4]} 33. Rh3
{[%clk 0:00:54.8]} 33... Rf7 {[%clk 0:00:52.6]} 34. Rh6 {[%clk 0:00:52.8]} 34...
Ra6 {[%clk 0:00:48.2]} 35. h4 {[%clk 0:00:45.6]} 35... b4 {[%clk 0:00:46.7]} 36.
h5 {[%clk 0:00:40.4]} 36... bxc3 {[%clk 0:00:47.1]} 37. bxc3 {[%clk 0:00:40.2]}
37... Rb6 {[%clk 0:00:47.8]} 38. a4 {[%clk 0:00:32.9]} 38... Rb2 {[%clk
0:00:47.6]} 39. Rd2 {[%clk 0:00:32.9]} 39... f4 {[%clk 0:00:47.6]} 40. Rxe6+
{[%clk 0:00:21.6]} 40... Kxe6 {[%clk 0:00:47.5]} 41. Bf5+ {[%clk 0:00:22]} 41...
Rxf5 {[%clk 0:00:35.3]} 42. Rxb2 {[%clk 0:00:22.9]} 42... Rxh5 {[%clk 0:00:35]}
43. Rb6+ {[%clk 0:00:17.6]} 43... Kf5 {[%clk 0:00:34.5]} 44. Rb5 {[%clk
0:00:11.8]} 44... Rh1 {[%clk 0:00:30.4]} 45. Rxa5 {[%clk 0:00:10.8]} 45... Rc1
{[%clk 0:00:30.8]} 46. Rc5 {[%clk 0:00:07.4]} 46... Rxc3 {[%clk 0:00:30.5]} 47.
a5 {[%clk 0:00:06.9]} 47... Rc2+ {[%clk 0:00:30.3]} 48. Kf1 {[%clk 0:00:06.4]}
48... Rc1+ {[%clk 0:00:19.7]} 49. Ke2 {[%clk 0:00:06.2]} 49... Rc2+ {[%clk
0:00:20.2]} 50. Kf1 {[%clk 0:00:04.6]} 50... Ra2 {[%clk 0:00:16.2]} 51. Rxc4
{[%clk 0:00:03.9]} 51... Rxa5 {[%clk 0:00:16.9]} 52. Rc2 {[%clk 0:00:03.7]}
52... Rxe5 {[%clk 0:00:16.8]} 53. Kf2 {[%clk 0:00:04.3]} 53... Kg4 {[%clk
0:00:16.9]} 54. Rb2 {[%clk 0:00:04.4]} 54... Ra5 {[%clk 0:00:17.3]} 55. Rc2
{[%clk 0:00:04.7]} 55... Ra3 {[%clk 0:00:17.9]} 56. Rb2 {[%clk 0:00:05]} 56...
Rc3 {[%clk 0:00:18.2]} 57. Ra2 {[%clk 0:00:05.2]} 57... Rd3 {[%clk 0:00:18.6]}
58. Rb2 {[%clk 0:00:04.9]} 58... Ra3 {[%clk 0:00:19.2]} 59. Rc2 {[%clk
0:00:05.1]} 59... Re3 {[%clk 0:00:19.6]} 60. Rb2 {[%clk 0:00:05.4]} 60... Re6
{[%clk 0:00:20.1]} 61. Ra2 {[%clk 0:00:05.7]} 61... Re7 {[%clk 0:00:20.6]} 62.
Rb2 {[%clk 0:00:06.1]} 62... Rf7 {[%clk 0:00:20.8]} 63. Ra2 {[%clk 0:00:06.4]}
63... Rc7 {[%clk 0:00:21]} 64. Rb2 {[%clk 0:00:06.5]} 64... Ra7 {[%clk
0:00:21.6]} 65. Rc2 {[%clk 0:00:06.7]} 65... Ra1 {[%clk 0:00:21.9]} 66. Rb2
{[%clk 0:00:06.7]} 66... Kf5 {[%clk 0:00:22.5]} 67. Rb5+ {[%clk 0:00:06.4]}
67... Ke4 {[%clk 0:00:22.1]} 68. Rb4+ {[%clk 0:00:06.6]} 68... Ke5 {[%clk
0:00:22.3]} 69. Rb5+ {[%clk 0:00:06.9]} 69... Kf6 {[%clk 0:00:23]} 70. Rb2
{[%clk 0:00:07]} 70... Kg5 {[%clk 0:00:22.9]} 71. Rc2 {[%clk 0:00:07.1]} 71...
Rd1 {[%clk 0:00:22.2]} 72. Rb2 {[%clk 0:00:07.3]} 72... Rd3 {[%clk 0:00:22.5]}
73. Ra2 {[%clk 0:00:07.6]} 73... Kg4 {[%clk 0:00:20.5]} 74. Rb2 {[%clk
0:00:07.8]} 74... Rd4 {[%clk 0:00:19.4]} 75. Ra2 {[%clk 0:00:08]} 75... Kf5
{[%clk 0:00:19.9]} 76. Rb2 {[%clk 0:00:08.4]} 76... Ke4 {[%clk 0:00:19.9]} 77.
Re2+ {[%clk 0:00:08.3]} 77... Kf5 {[%clk 0:00:19.3]} 78. Rb2 {[%clk 0:00:08.4]}
78... Rc4 {[%clk 0:00:19.8]} 79. Ra2 {[%clk 0:00:08.7]} 79... Ke4 {[%clk
0:00:20.3]} 80. Rb2 {[%clk 0:00:09]} 80... Ra4 {[%clk 0:00:18.7]} 81. Re2+
{[%clk 0:00:09]} 81... Kd3 {[%clk 0:00:19.1]} 82. Re5 {[%clk 0:00:08.6]} 82...
Rd4 {[%clk 0:00:16.9]} 83. Re6 {[%clk 0:00:08.5]} 83... Kc4 {[%clk 0:00:14.4]}
84. Kf3 {[%clk 0:00:08.7]} 84... Rd2 {[%clk 0:00:13.6]} 85. Re4+ {[%clk
0:00:07.9]} 85... Kd5 {[%clk 0:00:13.4]} 86. Rxf4 {[%clk 0:00:08.8]} 86... Ke5
{[%clk 0:00:13.9]} 87. g3 {[%clk 0:00:09]} 87... Rd1 {[%clk 0:00:12.9]} 88. Kg4
{[%clk 0:00:08.9]} 88... Rd8 {[%clk 0:00:13.1]} 89. Rf5+ {[%clk 0:00:08.6]}
89... Ke6 {[%clk 0:00:13]} 90. Rf2 {[%clk 0:00:09]} 90... Rg8+ {[%clk
0:00:13.6]} 91. Kh3 {[%clk 0:00:09.2]} 91... Rh8+ {[%clk 0:00:14.2]} 92. Kg2
{[%clk 0:00:09.5]} 92... Rg8 {[%clk 0:00:14.8]} 93. Rf4 {[%clk 0:00:09.8]} 93...
Ra8 {[%clk 0:00:13.5]} 94. g4 {[%clk 0:00:09.4]} 94... Ke5 {[%clk 0:00:13.1]}
95. Rf5+ {[%clk 0:00:08.5]} 95... Ke6 {[%clk 0:00:13.9]} 96. Kg3 {[%clk
0:00:09.2]} 96... Rg8 {[%clk 0:00:14.3]} 97. Kf4 {[%clk 0:00:09.4]} 97... Ra8
{[%clk 0:00:14.3]} 98. Rb5 {[%clk 0:00:09.1]} 98... Kf6 {[%clk 0:00:12.8]} 99.
Rb6+ {[%clk 0:00:08.9]} 99... Kg7 {[%clk 0:00:13.4]} 100. Kg5 {[%clk 0:00:09.1]}
100... Ra7 {[%clk 0:00:13.1]} 101. Kh5 {[%clk 0:00:09]} 101... Ra5+ {[%clk
0:00:13.1]} 102. g5 {[%clk 0:00:08.9]} 102... Ra7 {[%clk 0:00:13.8]} 103. Rh6
{[%clk 0:00:09]} 103... Rb7 {[%clk 0:00:13.4]} 104. Rc6 {[%clk 0:00:08.8]}
104... Ra7 {[%clk 0:00:13.7]} 105. Rc4 {[%clk 0:00:09.1]} 105... Rb7 {[%clk
0:00:13.8]} 106. Kg4 {[%clk 0:00:09.2]} 106... Ra7 {[%clk 0:00:14]} 107. Rd4
{[%clk 0:00:09.5]} 107... Rb7 {[%clk 0:00:14.5]} 108. Rf4 {[%clk 0:00:09.7]}
108... Ra7 {[%clk 0:00:15]} 109. Re4 {[%clk 0:00:09.9]} 109... Rb7 {[%clk
0:00:15.5]} 110. Rf4 {[%clk 0:00:10.3]} 110... Rc7 {[%clk 0:00:15.9]} 111. Re4
{[%clk 0:00:10.6]} 111... Rd7 {[%clk 0:00:16.3]} 112. Rf4 {[%clk 0:00:11]}
112... Re7 {[%clk 0:00:16.7]} 113. Rd4 {[%clk 0:00:11.2]} 113... Rc7 {[%clk
0:00:17]} 114. Rb4 {[%clk 0:00:11.2]} 114... Ra7 {[%clk 0:00:17.3]} 115. Rc4
{[%clk 0:00:11.5]} 115... Rd7 {[%clk 0:00:17.7]} 116. Rb4 {[%clk 0:00:11.2]}
116... Ra7 {[%clk 0:00:17.9]} 117. Rc4 {[%clk 0:00:11.4]} 117... Rb7 {[%clk
0:00:18.1]} 118. Ra4 {[%clk 0:00:11.2]} 118... Rc7 {[%clk 0:00:18.4]} 119. Rb4
{[%clk 0:00:11.5]} 119... Rd7 {[%clk 0:00:18.8]} 120. Rc4 {[%clk 0:00:11.6]}
120... Rd1 {[%clk 0:00:19.2]} 121. Rb4 {[%clk 0:00:11.6]} 121... Rg1+ {[%clk
0:00:19.2]} 122. Kf5 {[%clk 0:00:11.6]} 122... Rf1+ {[%clk 0:00:20.1]} 123. Rf4
{[%clk 0:00:11]} 123... Ra1 {[%clk 0:00:20.7]} 124. Kg4 {[%clk 0:00:11.2]}
124... Rg1+ {[%clk 0:00:21.4]} 125. Kf5 {[%clk 0:00:11.2]} 125... Ra1 {[%clk
0:00:21.8]} 126. Re4 {[%clk 0:00:11.2]} 126... Rf1+ {[%clk 0:00:22.2]} 127. Rf4
{[%clk 0:00:10.3]} 127... Rb1 {[%clk 0:00:22.2]} 128. Re4 {[%clk 0:00:09.7]}
128... Rg1 {[%clk 0:00:20.2]} 129. Re7+ {[%clk 0:00:09.3]} 129... Kf8 {[%clk
0:00:20.6]} 130. Rb7 {[%clk 0:00:09.2]} 130... Ra1 {[%clk 0:00:18.9]} 131. Kg6
{[%clk 0:00:07]} 131... Ra8 {[%clk 0:00:10.4]} 132. Kh7 {[%clk 0:00:06.4]}
132... Ra1 {[%clk 0:00:09.9]} 133. Rb8+ {[%clk 0:00:06.2]} 133... Ke7 {[%clk
0:00:09.9]} 134. g6 {[%clk 0:00:06.1]} 134... Kf6 {[%clk 0:00:08.1]} 135. Rf8+
{[%clk 0:00:05.2]} 135... Ke7 {[%clk 0:00:05.1]} 136. Rf2 {[%clk 0:00:03.6]}
136... Rh1+ {[%clk 0:00:05.2]} 137. Kg8 {[%clk 0:00:03.8]} 137... Rh3 {[%clk
0:00:05.4]} 138. g7 {[%clk 0:00:03.3]} 138... Rh4 {[%clk 0:00:05.6]} 139. Rf5
{[%clk 0:00:03.3]} 139... Rh3 {[%clk 0:00:05.7]} 140. Rg5 {[%clk 0:00:03.1]}
140... Rh2 {[%clk 0:00:05.3]} 141. Rg4 {[%clk 0:00:01.9]} 141... Rh5 {[%clk
0:00:05.6]} 142. Re4+ {[%clk 0:00:02.2]} 142... Kf6 {[%clk 0:00:05.8]} 143. Rf4+
{[%clk 0:00:02.8]} 143... Ke7 {[%clk 0:00:05.3]} 144. Rf7+ {[%clk 0:00:03]}
144... Ke8 {[%clk 0:00:05.3]} 145. Rf8+ {[%clk 0:00:03.3]} 145... Ke7 {[%clk
0:00:05.8]} 146. Ra8 {[%clk 0:00:04.2]} 146... Rh4 {[%clk 0:00:05.7]} 147. Ra7+
{[%clk 0:00:04.3]} 147... Ke8 {[%clk 0:00:04.5]} 148. Ra8+ {[%clk 0:00:04.8]}
148... Ke7 {[%clk 0:00:05.1]} 149. Ra2 {[%clk 0:00:05.6]} 149... Rh3 {[%clk
0:00:03.5]} 150. Re2+ {[%clk 0:00:05.9]} 150... Kf6 {[%clk 0:00:02.4]} 151. Kf8
{[%clk 0:00:06]} 151... Ra3 {[%clk 0:00:01.7]} 152. g8=Q {[%clk 0:00:06.1]}
152... Ra8+ {[%clk 0:00:02.6]} 153. Re8 {[%clk 0:00:06.2]} 153... Ra7 {[%clk
0:00:03.5]} 154. Qh8+ {[%clk 0:00:05.8]} 154... Kf5 {[%clk 0:00:03.9]} 155. Qh5+
{[%clk 0:00:05.3]} 155... Kf4 {[%clk 0:00:04.2]} 156. Qe5+ {[%clk 0:00:05.3]}
156... Kg4 {[%clk 0:00:04.7]} 157. Qe4+ {[%clk 0:00:05.4]} 157... Kh5 {[%clk
0:00:04.8]} 158. Qd5+ {[%clk 0:00:05.1]} 158... Kg6 {[%clk 0:00:04.8]} 159. Re6+
{[%clk 0:00:05]} 159... Kh7 {[%clk 0:00:04.9]} 160. Qh5# {[%clk 0:00:05.2]} 1-0

[Event "Early-Titled-Tuesday-Blitz-September-26-2023"]
[Site "Chess.com"]
[Date "2023.09.26"]
[Round "5"]
[White "rikchessmx"]
[Black "Chesstar"]
[Result "1-0"]
[WhiteElo "2360"]
[BlackElo "2061"]
[TimeControl "180+1"]
[EndTime "8:52:54 PDT"]
[Termination "rikchessmx won by resignation"]

1. e4 {[%clk 0:02:51.2]} 1... a5 {[%clk 0:02:59.6]} 2. Nf3 {[%clk 0:02:51.5]}
2... h5 {[%clk 0:02:59.4]} 3. Bc4 {[%clk 0:02:51.7]} 3... g6 {[%clk 0:02:59.4]}
4. Ng5 {[%clk 0:02:50.5]} 4... e6 {[%clk 0:02:58.9]} 5. d4 {[%clk 0:02:46.1]}
5... Bh6 {[%clk 0:02:57.6]} 6. h4 {[%clk 0:02:44.9]} 6... c6 {[%clk 0:02:55.7]}
7. Qf3 {[%clk 0:02:44.3]} 7... Qf6 {[%clk 0:02:53]} 8. e5 {[%clk 0:02:38.8]}
8... Qxf3 {[%clk 0:02:52.1]} 9. gxf3 {[%clk 0:02:38.9]} 9... b5 {[%clk
0:02:46.3]} 10. Bd3 {[%clk 0:02:37.9]} 10... Bxg5 {[%clk 0:02:40.5]} 11. Bxg5
{[%clk 0:02:36.8]} 11... Na6 {[%clk 0:02:40.1]} 12. a3 {[%clk 0:02:35]} 12...
Bb7 {[%clk 0:02:37.6]} 13. Nc3 {[%clk 0:02:34]} 13... b4 {[%clk 0:02:35.5]} 14.
Ne4 {[%clk 0:02:33.7]} 14... Kf8 {[%clk 0:02:28.6]} 15. Nd6 {[%clk 0:02:31.8]}
1-0

[Event "Early-Titled-Tuesday-Blitz-September-26-2023"]
[Site "Chess.com"]
[Date "2023.09.26"]
[Round "5"]
[White "sergeikim"]
[Black "Masterbeaterr"]
[Result "0-1"]
[WhiteElo "2601"]
[BlackElo "2460"]
[TimeControl "180+1"]
[EndTime "8:53:09 PDT"]
[Termination "Masterbeaterr won by resignation"]

1. d4 {[%clk 0:03:00.9]} 1... d5 {[%clk 0:02:59.8]} 2. c4 {[%clk 0:03:01]} 2...
dxc4 {[%clk 0:03:00.7]} 3. e3 {[%clk 0:03:00.6]} 3... Nf6 {[%clk 0:02:59]} 4.
Bxc4 {[%clk 0:03:00.6]} 4... e6 {[%clk 0:02:59.6]} 5. Nf3 {[%clk 0:03:00.9]}
5... a6 {[%clk 0:02:58.9]} 6. O-O {[%clk 0:03:00.9]} 6... Be7 {[%clk 0:02:53.6]}
7. Qe2 {[%clk 0:03:00.5]} 7... O-O {[%clk 0:02:53.4]} 8. Rd1 {[%clk 0:03:00.1]}
8... Nbd7 {[%clk 0:02:54]} 9. Nc3 {[%clk 0:02:59.7]} 9... b5 {[%clk 0:02:54]}
10. Bb3 {[%clk 0:02:59.2]} 10... Bb7 {[%clk 0:02:54.5]} 11. e4 {[%clk
0:02:59.5]} 11... b4 {[%clk 0:02:53.5]} 12. e5 {[%clk 0:02:59.3]} 12... bxc3
{[%clk 0:02:53.1]} 13. exf6 {[%clk 0:02:59.1]} 13... cxb2 {[%clk 0:02:49.7]} 14.
fxe7 {[%clk 0:02:55.3]} 14... bxa1=Q {[%clk 0:02:49.9]} 15. exd8=Q {[%clk
0:02:54.5]} 15... Raxd8 {[%clk 0:02:48.7]} 16. Ba3 {[%clk 0:02:52.6]} 16... Qc3
{[%clk 0:02:44.5]} 17. Bxf8 {[%clk 0:02:34.7]} 17... Nxf8 {[%clk 0:02:45.4]} 18.
Ne5 {[%clk 0:02:25.4]} 18... Rxd4 {[%clk 0:02:38.5]} 19. Re1 {[%clk 0:02:25.3]}
19... Re4 {[%clk 0:02:26.2]} 0-1

[Event "Early-Titled-Tuesday-Blitz-September-26-2023"]
[Site "Chess.com"]
[Date "2023.09.26"]
[Round "5"]
[White "Msb2"]
[Black "rezamahdavi2008"]
[Result "1/2-1/2"]
[WhiteElo "3087"]
[BlackElo "2882"]
[TimeControl "180+1"]
[EndTime "8:53:10 PDT"]
[Termination "Game drawn by agreement"]

1. d4 {[%clk 0:03:00.9]} 1... Nf6 {[%clk 0:02:59.5]} 2. c4 {[%clk 0:03:01.3]}
2... g6 {[%clk 0:03:00]} 3. Nc3 {[%clk 0:03:01.9]} 3... Bg7 {[%clk 0:03:00.6]}
4. e4 {[%clk 0:03:02.4]} 4... d6 {[%clk 0:03:01.2]} 5. Nf3 {[%clk 0:03:03.1]}
5... O-O {[%clk 0:03:01.6]} 6. Be2 {[%clk 0:03:03.9]} 6... e5 {[%clk 0:03:02.4]}
7. Be3 {[%clk 0:03:04.7]} 7... exd4 {[%clk 0:03:00.3]} 8. Nxd4 {[%clk
0:03:05.6]} 8... Re8 {[%clk 0:02:59.8]} 9. f3 {[%clk 0:03:06.3]} 9... c6 {[%clk
0:02:34.9]} 10. Qd2 {[%clk 0:03:06.3]} 10... d5 {[%clk 0:02:33.3]} 11. exd5
{[%clk 0:03:07.2]} 11... cxd5 {[%clk 0:02:34.2]} 12. O-O {[%clk 0:03:07.8]}
12... Nc6 {[%clk 0:02:32.2]} 13. Rad1 {[%clk 0:03:08.3]} 13... Nxd4 {[%clk
0:02:28.3]} 14. Bxd4 {[%clk 0:03:09.2]} 14... dxc4 {[%clk 0:02:25.6]} 15. Bxc4
{[%clk 0:03:10.1]} 15... Be6 {[%clk 0:02:23.7]} 16. Bb5 {[%clk 0:03:10.8]} 16...
Rf8 {[%clk 0:02:20.5]} 17. Qf2 {[%clk 0:03:11]} 17... Qa5 {[%clk 0:02:18.9]} 18.
Qh4 {[%clk 0:03:10.9]} 18... Nh5 {[%clk 0:02:14.8]} 19. Bd7 {[%clk 0:03:11.5]}
19... Qd8 {[%clk 0:01:56.9]} 20. Qxd8 {[%clk 0:03:07.1]} 20... Rfxd8 {[%clk
0:01:51.3]} 21. Bxg7 {[%clk 0:03:06.8]} 21... Nxg7 {[%clk 0:01:52.2]} 22. Bxe6
{[%clk 0:03:04.5]} 22... Nxe6 {[%clk 0:01:53.1]} 23. Kf2 {[%clk 0:03:05]}
1/2-1/2

[Event "Early-Titled-Tuesday-Blitz-September-26-2023"]
[Site "Chess.com"]
[Date "2023.09.26"]
[Round "5"]
[White "WPWPWP-2015"]
[Black "atigerman"]
[Result "0-1"]
[WhiteElo "2534"]
[BlackElo "2721"]
[TimeControl "180+1"]
[EndTime "8:54:23 PDT"]
[Termination "atigerman won by resignation"]

1. e4 {[%clk 0:02:53.5]} 1... Nf6 {[%clk 0:03:00.6]} 2. e5 {[%clk 0:02:48.8]}
2... Nd5 {[%clk 0:02:59.9]} 3. Nc3 {[%clk 0:02:48.2]} 3... Nxc3 {[%clk
0:02:59.6]} 4. dxc3 {[%clk 0:02:48.5]} 4... d6 {[%clk 0:02:59.6]} 5. Nf3 {[%clk
0:02:47.3]} 5... Nc6 {[%clk 0:02:59.7]} 6. exd6 {[%clk 0:02:43.7]} 6... exd6
{[%clk 0:02:59.3]} 7. Be2 {[%clk 0:02:41.4]} 7... Be7 {[%clk 0:02:59]} 8. Be3
{[%clk 0:02:38.8]} 8... O-O {[%clk 0:02:59.2]} 9. Qd2 {[%clk 0:02:38.3]} 9...
Bf5 {[%clk 0:02:59.2]} 10. O-O-O {[%clk 0:02:36.9]} 10... Bf6 {[%clk 0:02:59.4]}
11. h4 {[%clk 0:02:32.4]} 11... Re8 {[%clk 0:02:58.5]} 12. h5 {[%clk 0:02:31.1]}
12... Qd7 {[%clk 0:02:58.5]} 13. h6 {[%clk 0:02:27.8]} 13... g6 {[%clk
0:02:57.4]} 14. Nd4 {[%clk 0:02:26.8]} 14... Nxd4 {[%clk 0:02:55.8]} 15. Bxd4
{[%clk 0:02:24.9]} 15... Qa4 {[%clk 0:02:32.5]} 16. a3 {[%clk 0:01:22.2]} 16...
Bg5 {[%clk 0:02:27]} 17. Be3 {[%clk 0:01:21.5]} 17... Rxe3 {[%clk 0:02:25.7]}
0-1